[Event "*** Titled Tuesday Blitz"]
[Site "Chess.com"]
[Date "2020.04.07"]
[Round "2"]
[White "Qingdom"]
[Black "stolencandy13"]
[Result "0-1"]
[WhiteElo "2120"]
[BlackElo "2423"]
[TimeControl "180+1"]
[EndTime "13:19:34 PDT"]
[Termination "stolencandy13 won by resignation"]

1. d4 {[%clk 0:03:00.9]} 1... Nf6 {[%clk 0:02:57]} 2. Bg5 {[%clk 0:03:00.4]}
2... e6 {[%clk 0:02:56.4]} 3. e4 {[%clk 0:03:00.2]} 3... Be7 {[%clk 0:02:57]} 4.
e5 {[%clk 0:02:59.4]} 4... Nd5 {[%clk 0:02:56.8]} 5. Bd2 {[%clk 0:02:59.4]} 5...
d6 {[%clk 0:02:56.1]} 6. Nf3 {[%clk 0:02:58.5]} 6... c5 {[%clk 0:02:55.4]} 7. c4
{[%clk 0:02:58]} 7... Nb6 {[%clk 0:02:55.3]} 8. exd6 {[%clk 0:02:57.8]} 8...
Qxd6 {[%clk 0:02:52.1]} 9. dxc5 {[%clk 0:02:53.7]} 9... Qxc5 {[%clk 0:02:52.3]}
10. Be3 {[%clk 0:02:50.9]} 10... Qb4+ {[%clk 0:02:49]} 11. Qd2 {[%clk
0:02:49.8]} 11... Nxc4 {[%clk 0:02:40.9]} 12. Qxb4 {[%clk 0:02:44.1]} 12...
Bxb4+ {[%clk 0:02:40.4]} 13. Nbd2 {[%clk 0:02:39.7]} 13... Nxe3 {[%clk
0:02:38.1]} 14. fxe3 {[%clk 0:02:40]} 14... Nc6 {[%clk 0:02:36.9]} 15. Bd3
{[%clk 0:02:37]} 15... O-O {[%clk 0:02:36.5]} 16. Ke2 {[%clk 0:02:37.3]} 16...
b6 {[%clk 0:02:27.3]} 17. Rac1 {[%clk 0:02:33.8]} 17... Bb7 {[%clk 0:02:25.4]}
18. a3 {[%clk 0:02:33.6]} 18... Be7 {[%clk 0:02:17.5]} 19. Rc2 {[%clk
0:02:32.4]} 19... Rac8 {[%clk 0:02:15.8]} 20. Rhc1 {[%clk 0:02:32.2]} 20... Na5
{[%clk 0:02:16]} 21. Rxc8 {[%clk 0:02:30.2]} 21... Rxc8 {[%clk 0:02:16.9]} 22.
Rxc8+ {[%clk 0:02:29.6]} 22... Bxc8 {[%clk 0:02:17.7]} 23. b4 {[%clk 0:02:28.1]}
23... Nc6 {[%clk 0:02:13.3]} 24. Nb3 {[%clk 0:02:24.6]} 24... g6 {[%clk
0:02:04.9]} 25. Nbd4 {[%clk 0:02:22.2]} 25... Nxd4+ {[%clk 0:02:03.5]} 26. Nxd4
{[%clk 0:02:19.8]} 26... a6 {[%clk 0:01:53.9]} 27. Be4 {[%clk 0:02:14.5]} 27...
Kf8 {[%clk 0:01:47]} 28. Nc6 {[%clk 0:02:12.1]} 28... Bf6 {[%clk 0:01:45.4]} 29.
Kd3 {[%clk 0:02:10.5]} 29... Ke8 {[%clk 0:01:40.5]} 30. a4 {[%clk 0:02:07.6]}
30... Kd7 {[%clk 0:01:36.9]} 31. b5 {[%clk 0:02:02.4]} 31... a5 {[%clk 0:01:17]}
32. h3 {[%clk 0:01:47.3]} 32... Kd6 {[%clk 0:01:16.8]} 33. g4 {[%clk 0:01:39.6]}
33... Bh4 {[%clk 0:01:12.7]} 34. Kc4 {[%clk 0:01:32.7]} 34... f5 {[%clk
0:01:11.6]} 35. Bf3 {[%clk 0:01:29.7]} 35... e5 {[%clk 0:01:07.6]} 36. gxf5
{[%clk 0:01:29.1]} 36... gxf5 {[%clk 0:01:03.6]} 37. Bd5 {[%clk 0:01:26.8]}
37... Bg5 {[%clk 0:00:54.6]} 38. e4 {[%clk 0:01:26]} 38... fxe4 {[%clk 0:00:53]}
39. Bxe4 {[%clk 0:01:24.8]} 39... h6 {[%clk 0:00:52.5]} 40. Bg2 {[%clk
0:01:13.1]} 40... Be6+ {[%clk 0:00:52.7]} 41. Kc3 {[%clk 0:01:12.8]} 41... Kc5
{[%clk 0:00:48.2]} 42. Kd3 {[%clk 0:00:57.5]} 42... Bf6 {[%clk 0:00:46.8]} 43.
Ke4 {[%clk 0:00:56.3]} 43... Bd5+ {[%clk 0:00:46]} 44. Kf5 {[%clk 0:00:56.7]}
44... Bxg2 {[%clk 0:00:44.6]} 45. Kxf6 {[%clk 0:00:57.1]} 45... e4 {[%clk
0:00:43.1]} 46. Ne5 {[%clk 0:00:52.2]} 46... Bxh3 {[%clk 0:00:40]} 47. Kg6
{[%clk 0:00:50.7]} 47... e3 {[%clk 0:00:38.2]} 48. Kxh6 {[%clk 0:00:47.8]} 48...
e2 {[%clk 0:00:35.1]} 49. Kg5 {[%clk 0:00:45.9]} 49... Kd5 {[%clk 0:00:32.7]}
50. Nd3 {[%clk 0:00:41.9]} 50... Kd4 {[%clk 0:00:30]} 51. Ne1 {[%clk 0:00:40.4]}
51... Be6 {[%clk 0:00:27.7]} 52. Kf4 {[%clk 0:00:39.5]} 52... Bb3 {[%clk
0:00:26.5]} 53. Kf3 {[%clk 0:00:39.7]} 53... Bxa4 {[%clk 0:00:24.4]} 54. Kxe2
{[%clk 0:00:40]} 54... Kc3 {[%clk 0:00:24.3]} 55. Nf3 {[%clk 0:00:35.8]} 55...
Bxb5+ {[%clk 0:00:23.5]} 56. Kd1 {[%clk 0:00:36]} 56... Kb2 {[%clk 0:00:22.8]}
57. Kd2 {[%clk 0:00:33]} 57... a4 {[%clk 0:00:21.8]} 58. Nd4 {[%clk 0:00:33.3]}
58... a3 {[%clk 0:00:19.6]} 59. Nxb5 {[%clk 0:00:33.4]} 59... a2 {[%clk
0:00:19.5]} 60. Nd6 {[%clk 0:00:33.6]} 60... a1=Q {[%clk 0:00:19.5]} 61. Nc4+
{[%clk 0:00:34.2]} 61... Kb3 {[%clk 0:00:19.2]} 62. Nxb6 {[%clk 0:00:34.9]}
62... Qd4+ {[%clk 0:00:19.1]} 63. Ke2 {[%clk 0:00:35.1]} 63... Qxb6 {[%clk
0:00:20]} 64. Kd3 {[%clk 0:00:35.2]} 64... Qd6+ {[%clk 0:00:19.7]} 65. Ke3
{[%clk 0:00:35.1]} 65... Kc3 {[%clk 0:00:20.6]} 0-1

[Event "*** Titled Tuesday Blitz"]
[Site "Chess.com"]
[Date "2020.04.07"]
[Round "2"]
[White "Oleg_Papayan"]
[Black "Federtiu"]
[Result "0-1"]
[WhiteElo "2331"]
[BlackElo "2684"]
[TimeControl "180+1"]
[EndTime "13:19:36 PDT"]
[Termination "Federtiu won by resignation"]

1. e4 {[%clk 0:02:20.5]} 1... g6 {[%clk 0:02:58]} 2. d4 {[%clk 0:02:19.9]} 2...
Bg7 {[%clk 0:02:56.7]} 3. Nc3 {[%clk 0:02:20]} 3... d6 {[%clk 0:02:57.3]} 4. Be3
{[%clk 0:02:19]} 4... a6 {[%clk 0:02:57.5]} 5. Nge2 {[%clk 0:02:19.2]} 5... b5
{[%clk 0:02:54.9]} 6. a3 {[%clk 0:02:19.6]} 6... Bb7 {[%clk 0:02:55.3]} 7. f3
{[%clk 0:02:19.9]} 7... Nd7 {[%clk 0:02:55.3]} 8. Qd2 {[%clk 0:02:20.4]} 8...
Rc8 {[%clk 0:02:53.4]} 9. O-O-O {[%clk 0:02:10.4]} 9... Nb6 {[%clk 0:02:49.5]}
10. Ng3 {[%clk 0:02:06.7]} 10... h5 {[%clk 0:02:48.9]} 11. h4 {[%clk 0:01:56.1]}
11... Nf6 {[%clk 0:02:47.3]} 12. d5 {[%clk 0:01:53.9]} 12... c6 {[%clk
0:02:30.4]} 13. dxc6 {[%clk 0:01:51.4]} 13... Rxc6 {[%clk 0:02:26.1]} 14. e5
{[%clk 0:01:51.2]} 14... Nfd7 {[%clk 0:02:20.8]} 15. e6 {[%clk 0:01:49.7]} 15...
fxe6 {[%clk 0:02:19.3]} 16. Bd3 {[%clk 0:01:49.2]} 16... Ne5 {[%clk 0:02:19.5]}
17. f4 {[%clk 0:01:40.8]} 17... Nbc4 {[%clk 0:02:07.6]} 18. Qe2 {[%clk
0:01:27.5]} 18... Nxb2 {[%clk 0:01:22.1]} 19. fxe5 {[%clk 0:01:24.7]} 19... Bxe5
{[%clk 0:01:20.2]} 20. Bxg6+ {[%clk 0:01:22.9]} 20... Kd7 {[%clk 0:01:20.7]} 21.
Kxb2 {[%clk 0:00:59.4]} 21... Rxc3 {[%clk 0:01:02]} 22. Bd4 {[%clk 0:00:58.8]}
22... Bxd4 {[%clk 0:01:01.3]} 23. Rxd4 {[%clk 0:00:57.3]} 23... Rxg3 {[%clk
0:01:01.1]} 24. Bf7 {[%clk 0:00:52.4]} 24... e5 {[%clk 0:00:50.6]} 25. Qxe5
{[%clk 0:00:51]} 25... Rxg2 {[%clk 0:00:30.7]} 26. Re1 {[%clk 0:00:48.3]} 26...
Rh6 {[%clk 0:00:12.9]} 27. Rd3 {[%clk 0:00:19.1]} 27... Qh8 {[%clk 0:00:11.9]}
28. Qxh8 {[%clk 0:00:13.3]} 28... Rxh8 {[%clk 0:00:12.8]} 29. Be6+ {[%clk
0:00:13.9]} 29... Kd8 {[%clk 0:00:13.2]} 30. a4 {[%clk 0:00:09.4]} 30... bxa4
{[%clk 0:00:06.4]} 31. Rd4 {[%clk 0:00:06.4]} 31... Kc7 {[%clk 0:00:04.1]} 32.
Re3 {[%clk 0:00:04.4]} 32... Rb8 {[%clk 0:00:02.4]} 33. Bc4 {[%clk 0:00:02.1]}
33... Bd5+ {[%clk 0:00:01.4]} 34. Kc3 {[%clk 0:00:01.7]} 34... Bxc4 {[%clk
0:00:02.3]} 35. Rxc4+ {[%clk 0:00:02.4]} 35... Kd7 {[%clk 0:00:02.8]} 36. Rxa4
{[%clk 0:00:02.7]} 36... Rg4 {[%clk 0:00:03.2]} 37. Rxa6 {[%clk 0:00:02.1]}
37... Rc8+ {[%clk 0:00:03.9]} 38. Kd2 {[%clk 0:00:02.1]} 38... Rc7 {[%clk
0:00:04.8]} 39. Rb6 {[%clk 0:00:02.4]} 39... Rg2+ {[%clk 0:00:04.9]} 40. Kd3
{[%clk 0:00:02.4]} 40... Rgxc2 {[%clk 0:00:05.8]} 41. Rb4 {[%clk 0:00:03]} 41...
R2c3+ {[%clk 0:00:06]} 42. Ke4 {[%clk 0:00:03.9]} 42... R7c4+ {[%clk 0:00:05.2]}
43. Rxc4 {[%clk 0:00:03.7]} 43... Rxc4+ {[%clk 0:00:06.1]} 44. Kd5 {[%clk
0:00:04.2]} 44... Rxh4 {[%clk 0:00:06.8]} 45. Rxe7+ {[%clk 0:00:04.5]} 45...
Kxe7 {[%clk 0:00:06.5]} 0-1

[Event "*** Titled Tuesday Blitz"]
[Site "Chess.com"]
[Date "2020.04.07"]
[Round "2"]
[White "Mr_Sinigami"]
[Black "Lord_Neezy"]
[Result "1-0"]
[WhiteElo "2606"]
[BlackElo "2314"]
[TimeControl "180+1"]
[EndTime "13:19:36 PDT"]
[Termination "Mr_Sinigami won on time"]

1. d4 {[%clk 0:03:00.9]} 1... e6 {[%clk 0:02:59.3]} 2. Nf3 {[%clk 0:03:01.4]}
2... Nf6 {[%clk 0:02:57.6]} 3. Bf4 {[%clk 0:03:01.5]} 3... c5 {[%clk 0:02:56.3]}
4. e3 {[%clk 0:03:01.6]} 4... cxd4 {[%clk 0:02:55.7]} 5. exd4 {[%clk 0:03:01]}
5... d6 {[%clk 0:02:55.5]} 6. c3 {[%clk 0:02:59.7]} 6... Be7 {[%clk 0:02:55.5]}
7. h3 {[%clk 0:02:59]} 7... O-O {[%clk 0:02:49.1]} 8. Be2 {[%clk 0:02:59.4]}
8... b6 {[%clk 0:02:43.1]} 9. O-O {[%clk 0:02:59.8]} 9... Bb7 {[%clk 0:02:43.1]}
10. a4 {[%clk 0:03:00.1]} 10... Nbd7 {[%clk 0:02:39.8]} 11. a5 {[%clk
0:02:54.9]} 11... Rc8 {[%clk 0:02:28]} 12. axb6 {[%clk 0:02:51.2]} 12... axb6
{[%clk 0:02:28.9]} 13. Na3 {[%clk 0:02:51]} 13... Re8 {[%clk 0:02:16.9]} 14. Nb5
{[%clk 0:02:49.6]} 14... Nf8 {[%clk 0:02:09.5]} 15. Ra7 {[%clk 0:02:44.7]} 15...
Bc6 {[%clk 0:02:02.7]} 16. Re1 {[%clk 0:02:33.7]} 16... Ng6 {[%clk 0:01:59]} 17.
Bh2 {[%clk 0:02:32.7]} 17... Nd5 {[%clk 0:01:50.7]} 18. Qd2 {[%clk 0:02:21.2]}
18... Ra8 {[%clk 0:01:46.3]} 19. Rea1 {[%clk 0:02:14.6]} 19... Rxa7 {[%clk
0:01:45.7]} 20. Nxa7 {[%clk 0:02:03.3]} 20... Bb7 {[%clk 0:00:58.1]} 21. Bb5
{[%clk 0:02:01.4]} 21... Rf8 {[%clk 0:00:58.5]} 22. Nc6 {[%clk 0:02:00.1]} 22...
Qc7 {[%clk 0:00:54.9]} 23. Nxe7+ {[%clk 0:01:57.5]} 23... Qxe7 {[%clk
0:00:52.3]} 24. Bg3 {[%clk 0:01:51.1]} 24... Ra8 {[%clk 0:00:50.7]} 25. Rxa8+
{[%clk 0:01:46.9]} 25... Bxa8 {[%clk 0:00:50.9]} 26. c4 {[%clk 0:01:40.3]} 26...
Nf6 {[%clk 0:00:43.1]} 27. Qb4 {[%clk 0:01:30.7]} 27... Ne4 {[%clk 0:00:40.1]}
28. Bh2 {[%clk 0:01:25.9]} 28... Qc7 {[%clk 0:00:28.2]} 29. Ne1 {[%clk
0:01:11.2]} 29... e5 {[%clk 0:00:23.6]} 30. f3 {[%clk 0:01:03.1]} 30... Ng5
{[%clk 0:00:20.6]} 31. d5 {[%clk 0:00:54.5]} 31... h6 {[%clk 0:00:19.1]} 32. Nd3
{[%clk 0:00:51.8]} 32... Nh7 {[%clk 0:00:17.9]} 33. Qa3 {[%clk 0:00:42.5]} 33...
Bb7 {[%clk 0:00:14.9]} 34. Qa7 {[%clk 0:00:42.5]} 34... Qe7 {[%clk 0:00:06.7]}
35. Qxb6 {[%clk 0:00:30.3]} 35... Bc8 {[%clk 0:00:07.2]} 36. Qb8 {[%clk
0:00:20.4]} 36... Qf8 {[%clk 0:00:07.5]} 37. c5 {[%clk 0:00:18.1]} 37... dxc5
{[%clk 0:00:04.7]} 38. Nxe5 {[%clk 0:00:18.5]} 38... Nxe5 {[%clk 0:00:03.8]} 39.
Bxe5 {[%clk 0:00:18.6]} 39... Ng5 {[%clk 0:00:01.2]} 40. Bd6 {[%clk 0:00:18]}
1-0

[Event "*** Titled Tuesday Blitz"]
[Site "Chess.com"]
[Date "2020.04.07"]
[Round "2"]
[White "VladimirBelous"]
[Black "arminmusovic"]
[Result "1-0"]
[WhiteElo "2760"]
[BlackElo "2515"]
[TimeControl "180+1"]
[EndTime "13:19:38 PDT"]
[Termination "VladimirBelous won by resignation"]

1. d4 {[%clk 0:03:00.9]} 1... d5 {[%clk 0:02:59.9]} 2. c4 {[%clk 0:03:00.2]}
2... c5 {[%clk 0:03:00.4]} 3. dxc5 {[%clk 0:02:58.6]} 3... e6 {[%clk 0:03:00.5]}
4. cxd5 {[%clk 0:02:56.5]} 4... Nf6 {[%clk 0:03:00.5]} 5. Nc3 {[%clk 0:02:39.2]}
5... Bxc5 {[%clk 0:02:57.2]} 6. dxe6 {[%clk 0:02:32.6]} 6... Qxd1+ {[%clk
0:02:58.1]} 7. Nxd1 {[%clk 0:02:32.4]} 7... Bxe6 {[%clk 0:02:59]} 8. e3 {[%clk
0:02:30.1]} 8... Nc6 {[%clk 0:02:55.5]} 9. Bb5 {[%clk 0:02:22.3]} 9... Ne4
{[%clk 0:02:44.9]} 10. a3 {[%clk 0:02:18.3]} 10... Bb3 {[%clk 0:02:43.6]} 11.
Nc3 {[%clk 0:01:48.4]} 11... Nd6 {[%clk 0:02:08.8]} 12. Bxc6+ {[%clk 0:01:44.9]}
12... bxc6 {[%clk 0:02:09.7]} 13. Nf3 {[%clk 0:01:44.4]} 13... O-O-O {[%clk
0:01:57.1]} 14. Nd2 {[%clk 0:01:41.1]} 14... Bc2 {[%clk 0:01:56.1]} 15. b4
{[%clk 0:01:23.4]} 15... Bb6 {[%clk 0:01:53.7]} 16. Bb2 {[%clk 0:01:23.8]} 16...
Kb7 {[%clk 0:01:48.3]} 17. Rc1 {[%clk 0:01:20.9]} 17... Bd3 {[%clk 0:01:48.7]}
18. Na4 {[%clk 0:01:20.7]} 18... Ne4 {[%clk 0:01:44]} 19. Nxe4 {[%clk 0:01:15]}
19... Bxe4 {[%clk 0:01:44.9]} 20. f3 {[%clk 0:01:12.9]} 20... Bd5 {[%clk
0:01:23.5]} 21. Nc5+ {[%clk 0:01:04.7]} 21... Ka8 {[%clk 0:01:23.4]} 22. Kf2
{[%clk 0:00:58.2]} 22... f6 {[%clk 0:01:20.7]} 23. Rhd1 {[%clk 0:00:58.2]} 23...
Rhe8 {[%clk 0:01:18.9]} 24. Bd4 {[%clk 0:00:57.2]} 24... h5 {[%clk 0:01:08.2]}
25. e4 {[%clk 0:00:50.7]} 25... Ba2 {[%clk 0:00:52.2]} 26. Be3 {[%clk
0:00:49.1]} 26... h4 {[%clk 0:00:41.7]} 27. Nd7 {[%clk 0:00:41.5]} 27... Bxe3+
{[%clk 0:00:32.1]} 28. Kxe3 {[%clk 0:00:40.9]} 28... Be6 {[%clk 0:00:28.9]} 29.
Nc5 {[%clk 0:00:38.5]} 29... Bc8 {[%clk 0:00:29.2]} 30. Rxd8 {[%clk 0:00:32.2]}
30... Rxd8 {[%clk 0:00:29.3]} 31. Rc2 {[%clk 0:00:28.4]} 31... Kb8 {[%clk
0:00:29.2]} 32. Rd2 {[%clk 0:00:28.5]} 32... Rxd2 {[%clk 0:00:28]} 33. Kxd2
{[%clk 0:00:28.5]} 33... Kc7 {[%clk 0:00:28.9]} 34. Ke3 {[%clk 0:00:29]} 34...
Kb6 {[%clk 0:00:27.6]} 35. Kd4 {[%clk 0:00:25.1]} 35... a5 {[%clk 0:00:27.1]}
36. bxa5+ {[%clk 0:00:22.4]} 36... Kxa5 {[%clk 0:00:26.9]} 37. f4 {[%clk
0:00:22.9]} 37... Kb6 {[%clk 0:00:20.3]} 38. e5 {[%clk 0:00:22.9]} 38... fxe5+
{[%clk 0:00:19.4]} 39. fxe5 {[%clk 0:00:23.8]} 39... Kc7 {[%clk 0:00:16.5]} 40.
a4 {[%clk 0:00:23.9]} 40... g5 {[%clk 0:00:15.3]} 41. a5 {[%clk 0:00:23.9]}
41... g4 {[%clk 0:00:15.8]} 42. a6 {[%clk 0:00:23.2]} 42... Kb6 {[%clk 0:00:14]}
43. e6 {[%clk 0:00:21.6]} 43... Bxe6 {[%clk 0:00:13]} 44. Nxe6 {[%clk
0:00:21.9]} 44... Kxa6 {[%clk 0:00:13.3]} 45. Kc5 {[%clk 0:00:21.7]} 45... Ka5
{[%clk 0:00:13]} 46. Nd4 {[%clk 0:00:19.9]} 46... Ka4 {[%clk 0:00:13.4]} 47. Nf5
{[%clk 0:00:20.4]} 47... h3 {[%clk 0:00:13.9]} 48. g3 {[%clk 0:00:20.9]} 48...
Kb3 {[%clk 0:00:14.1]} 49. Ne3 {[%clk 0:00:21.5]} 49... Kc3 {[%clk 0:00:14.7]}
50. Nxg4 {[%clk 0:00:22.2]} 50... Kd3 {[%clk 0:00:15.6]} 51. Nf2+ {[%clk
0:00:22.7]} 51... Ke3 {[%clk 0:00:15.8]} 52. Nxh3 {[%clk 0:00:23.2]} 52... Kf3
{[%clk 0:00:16.6]} 53. Nf2 {[%clk 0:00:22.8]} 53... Kg2 {[%clk 0:00:16.3]} 54.
g4 {[%clk 0:00:23.3]} 1-0

[Event "*** Titled Tuesday Blitz"]
[Site "Chess.com"]
[Date "2020.04.07"]
[Round "2"]
[White "silverback96"]
[Black "vanea_03"]
[Result "1-0"]
[WhiteElo "2107"]
[BlackElo "2617"]
[TimeControl "180+1"]
[EndTime "13:19:38 PDT"]
[Termination "silverback96 won by checkmate"]

1. d4 {[%clk 0:03:00.9]} 1... Nf6 {[%clk 0:02:59.2]} 2. c4 {[%clk 0:03:00.7]}
2... e6 {[%clk 0:02:59.4]} 3. g3 {[%clk 0:03:01.2]} 3... c5 {[%clk 0:02:59.6]}
4. d5 {[%clk 0:03:00]} 4... exd5 {[%clk 0:03:00.5]} 5. cxd5 {[%clk 0:03:00.9]}
5... d6 {[%clk 0:03:01.4]} 6. Nc3 {[%clk 0:03:01.4]} 6... g6 {[%clk 0:03:02.3]}
7. Nf3 {[%clk 0:03:01.9]} 7... Bg7 {[%clk 0:03:02.7]} 8. Bg2 {[%clk 0:02:56.7]}
8... O-O {[%clk 0:03:03.1]} 9. O-O {[%clk 0:02:57.3]} 9... a6 {[%clk 0:03:03]}
10. a4 {[%clk 0:02:56.7]} 10... Nbd7 {[%clk 0:03:03.6]} 11. Bf4 {[%clk
0:02:54.4]} 11... Qe7 {[%clk 0:03:03.7]} 12. Rb1 {[%clk 0:02:52.4]} 12... Ng4
{[%clk 0:02:57.7]} 13. h3 {[%clk 0:02:51.2]} 13... Nge5 {[%clk 0:02:56.3]} 14.
Nxe5 {[%clk 0:02:42.2]} 14... Nxe5 {[%clk 0:02:49.4]} 15. b4 {[%clk 0:02:41.2]}
15... b6 {[%clk 0:02:43]} 16. bxc5 {[%clk 0:02:09.1]} 16... bxc5 {[%clk
0:02:42.2]} 17. Qc2 {[%clk 0:02:08.2]} 17... Bf5 {[%clk 0:02:34.4]} 18. e4
{[%clk 0:02:07.6]} 18... Bd7 {[%clk 0:02:35]} 19. Rb7 {[%clk 0:02:02.5]} 19...
Bxa4 {[%clk 0:02:30.5]} 20. Qb2 {[%clk 0:01:27.9]} 20... Bd7 {[%clk 0:02:30.3]}
21. Rb1 {[%clk 0:01:22.9]} 21... Nd3 {[%clk 0:02:26.4]} 22. Qd2 {[%clk
0:01:18.9]} 22... Nxf4 {[%clk 0:02:15.2]} 23. gxf4 {[%clk 0:01:18]} 23... Qd8
{[%clk 0:02:06.5]} 24. Nd1 {[%clk 0:01:12.5]} 24... Bb5 {[%clk 0:02:02.7]} 25.
Nc3 {[%clk 0:01:09.9]} 25... Bc4 {[%clk 0:01:40.4]} 26. Na4 {[%clk 0:01:03.6]}
26... Qh4 {[%clk 0:01:31.3]} 27. Nb6 {[%clk 0:00:47.4]} 27... Bb5 {[%clk
0:01:19]} 28. Nxa8 {[%clk 0:00:47.2]} 28... Rxa8 {[%clk 0:01:19.9]} 29. e5
{[%clk 0:00:44.8]} 29... Bh6 {[%clk 0:01:09.6]} 30. e6 {[%clk 0:00:44.3]} 30...
Bxf4 {[%clk 0:00:59.4]} 31. exf7+ {[%clk 0:00:41.6]} 31... Kf8 {[%clk
0:00:59.9]} 32. Qe1 {[%clk 0:00:31.2]} 32... Be5 {[%clk 0:00:55.7]} 33. Qa5
{[%clk 0:00:30.5]} 33... Rc8 {[%clk 0:00:44.8]} 34. R1xb5 {[%clk 0:00:17.2]}
34... axb5 {[%clk 0:00:41.5]} 35. Qxb5 {[%clk 0:00:18.1]} 35... c4 {[%clk
0:00:24.4]} 36. Qd7 {[%clk 0:00:17.3]} 36... Rd8 {[%clk 0:00:22]} 37. Qe6 {[%clk
0:00:14.7]} 37... c3 {[%clk 0:00:17.8]} 38. Rc7 {[%clk 0:00:15]} 38... Qf6
{[%clk 0:00:15.3]} 39. Rc8 {[%clk 0:00:13.7]} 39... Kg7 {[%clk 0:00:09.7]} 40.
Rxd8 {[%clk 0:00:12.4]} 40... Qxd8 {[%clk 0:00:10.6]} 41. Qe8 {[%clk 0:00:12.4]}
41... Bf6 {[%clk 0:00:06.1]} 42. f8=Q# {[%clk 0:00:11.6]} 1-0

[Event "*** Titled Tuesday Blitz"]
[Site "Chess.com"]
[Date "2020.04.07"]
[Round "2"]
[White "LilRag"]
[Black "Justmig"]
[Result "1/2-1/2"]
[WhiteElo "2357"]
[BlackElo "2697"]
[TimeControl "180+1"]
[EndTime "13:19:38 PDT"]
[Termination "Game drawn by repetition"]

1. Nf3 {[%clk 0:03:00.9]} 1... d5 {[%clk 0:02:57]} 2. e3 {[%clk 0:03:00.9]} 2...
Nf6 {[%clk 0:02:11.6]} 3. d4 {[%clk 0:03:00.3]} 3... Bg4 {[%clk 0:02:10.6]} 4.
Be2 {[%clk 0:03:00.1]} 4... e6 {[%clk 0:02:09.9]} 5. Nbd2 {[%clk 0:02:59.8]}
5... c5 {[%clk 0:02:09.2]} 6. dxc5 {[%clk 0:02:59.5]} 6... Bxc5 {[%clk 0:01:49]}
7. O-O {[%clk 0:02:59.1]} 7... O-O {[%clk 0:01:48.5]} 8. a3 {[%clk 0:02:58.3]}
8... Nc6 {[%clk 0:01:48.5]} 9. c4 {[%clk 0:02:53.6]} 9... a5 {[%clk 0:01:46.6]}
10. b3 {[%clk 0:02:52.6]} 10... d4 {[%clk 0:01:45]} 11. exd4 {[%clk 0:02:46.8]}
11... Nxd4 {[%clk 0:01:44.7]} 12. Bb2 {[%clk 0:02:28.7]} 12... Nxe2+ {[%clk
0:01:40]} 13. Qxe2 {[%clk 0:02:27.4]} 13... Qc7 {[%clk 0:01:30.7]} 14. Rad1
{[%clk 0:02:14.4]} 14... Rad8 {[%clk 0:01:29]} 15. h3 {[%clk 0:02:09.3]} 15...
Bh5 {[%clk 0:01:27.2]} 16. g4 {[%clk 0:01:08.3]} 16... Bg6 {[%clk 0:01:23.3]}
17. Ne5 {[%clk 0:00:57.3]} 17... Nd7 {[%clk 0:00:49.5]} 18. Ndf3 {[%clk
0:00:53.3]} 18... Nxe5 {[%clk 0:00:42.1]} 19. Nxe5 {[%clk 0:00:52.5]} 19... Be7
{[%clk 0:00:42.2]} 20. Rxd8 {[%clk 0:00:40.9]} 20... Rxd8 {[%clk 0:00:41.3]} 21.
Rd1 {[%clk 0:00:37.2]} 21... Bf6 {[%clk 0:00:36.6]} 22. Rxd8+ {[%clk 0:00:34.3]}
22... Qxd8 {[%clk 0:00:37.5]} 23. Nxg6 {[%clk 0:00:34.2]} 23... hxg6 {[%clk
0:00:35.2]} 24. Bxf6 {[%clk 0:00:33.6]} 24... gxf6 {[%clk 0:00:36.1]} 25. Qf3
{[%clk 0:00:29.4]} 25... Qe7 {[%clk 0:00:34.3]} 26. a4 {[%clk 0:00:26.6]} 26...
f5 {[%clk 0:00:31.5]} 27. Kg2 {[%clk 0:00:24.3]} 27... b6 {[%clk 0:00:23.7]} 28.
Qe3 {[%clk 0:00:22.8]} 28... Qd6 {[%clk 0:00:22.8]} 29. Qf3 {[%clk 0:00:20.4]}
29... Qc5 {[%clk 0:00:20.4]} 30. g5 {[%clk 0:00:18.1]} 30... e5 {[%clk
0:00:19.9]} 31. Qa8+ {[%clk 0:00:17]} 31... Kg7 {[%clk 0:00:19.6]} 32. Qd8
{[%clk 0:00:17.3]} 32... Qc6+ {[%clk 0:00:11.8]} 33. Kg1 {[%clk 0:00:17.4]}
33... Qe6 {[%clk 0:00:10.2]} 34. h4 {[%clk 0:00:16.7]} 34... f4 {[%clk
0:00:09.9]} 35. Kf1 {[%clk 0:00:16.4]} 35... f3 {[%clk 0:00:09.5]} 36. Ke1
{[%clk 0:00:16.4]} 36... Qf5 {[%clk 0:00:09.7]} 37. Kd2 {[%clk 0:00:15.7]} 37...
Qf4+ {[%clk 0:00:09.4]} 38. Kd3 {[%clk 0:00:15.4]} 38... e4+ {[%clk 0:00:07.1]}
39. Kc2 {[%clk 0:00:14]} 39... e3 {[%clk 0:00:04.4]} 40. fxe3 {[%clk 0:00:13.9]}
40... Qxe3 {[%clk 0:00:03.3]} 41. Qf6+ {[%clk 0:00:14.4]} 41... Kg8 {[%clk
0:00:03.6]} 42. Qd8+ {[%clk 0:00:14.3]} 42... Kh7 {[%clk 0:00:03.8]} 43. Qf6
{[%clk 0:00:14.8]} 43... Qe2+ {[%clk 0:00:03.6]} 44. Kc3 {[%clk 0:00:14.5]}
44... Kg8 {[%clk 0:00:04.3]} 45. Qd8+ {[%clk 0:00:14.4]} 45... Kh7 {[%clk
0:00:04.7]} 46. Qf6 {[%clk 0:00:14.9]} 46... Qe1+ {[%clk 0:00:04.9]} 47. Kd3
{[%clk 0:00:14.6]} 47... Qe2+ {[%clk 0:00:05.1]} 48. Kc3 {[%clk 0:00:14.4]}
1/2-1/2